lending/lending_fUSD_20240110
["ID","MTS","AMOUNT","RATE_DAILY","PERIOD"]
[311138826,1704929450535,-273.31252295,0.00038356,4]
[311138828,1704929450549,-500.0,0.00038356,4]
[311138829,1704929450560,-500.0,0.00038356,4]
[311138831,1704929450571,-500.0,0.00038356,4]
[311138834,1704929450581,-500.0,0.00038356,4]
[311138836,1704929450592,-670.39,0.00038356,4]
[311138838,1704929450602,-500.0,0.00038356,4]
[311138840,1704929450613,-500.0,0.00038356,4]
[311138841,1704929450623,-500.0,0.00038356,4]
[311138844,1704929450634,-500.0,0.00038356,4]
[311138846,1704929450645,-500.0,0.00038356,4]
[311138847,1704929450655,-500.0,0.00038356,4]
[311138849,1704929450667,-479.64966834,0.00038356,4]
[311138851,1704929450677,-500.0,0.00038356,4]
[311138853,1704929450687,-500.0,0.00038356,4]
[311138855,1704929450697,-500.0,0.00038356,4]
[311138858,1704929450707,-500.0,0.00038356,4]
[311138860,1704929450718,-1108.5,0.00038356,4]
[311138862,1704929450728,-1012.18,0.00038356,4]
[311138864,1704929450739,-500.0,0.00038356,4]
[311138866,1704929450749,-3847.64,0.00038356,4]
[311138868,1704929450760,-1493.63,0.00038356,4]
[311138869,1704929450771,-500.0,0.00038356,4]
[311138871,1704929450782,-500.0,0.00038356,4]
[311138873,1704929450801,-500.0,0.00038356,4]
[311138875,1704929450812,-500.0,0.00038356,4]
[311138877,1704929450826,-500.0,0.00038356,4]
[311138879,1704929450837,-536.39635212,0.00038356,4]
[311138881,1704929450848,-1517.38,0.00038356,4]
[311138883,1704929450859,-500.0,0.00038356,4]
[311138885,1704929450870,-1089.24,0.00038356,4]
[311138887,1704929450881,-500.0,0.00038356,4]
[311138889,1704929450892,-500.0,0.00038356,4]
[311138891,1704929450904,-500.0,0.00038356,4]
[311138893,1704929450914,-709.16,0.00038356,4]
[311138895,1704929450926,-500.0,0.00038356,4]
[311138897,1704929450937,-571.86,0.00038356,4]
[311138900,1704929450947,-500.0,0.00038356,4]
[311138902,1704929450958,-999.05,0.00038356,4]
[311138904,1704929450968,-539.92,0.00038356,4]
[311138905,1704929450978,-308.46,0.00038356,4]
[311138908,1704929450987,-500.0,0.00038356,4]
[311138910,1704929450997,-2312.53,0.00038356,4]
[311138911,1704929451008,-1938.93,0.00038356,4]
[311138913,1704929451018,-500.0,0.00038356,4]
[311138915,1704929451029,-500.0,0.00038356,4]
[311138917,1704929451038,-500.0,0.00038356,4]
[311138919,1704929451053,-500.0,0.00038356,4]
[311138921,1704929451063,-500.0,0.00038356,4]
[311138923,1704929451073,-1637.04,0.00038356,4]
[311138925,1704929451083,-500.0,0.00038356,4]
[311138928,1704929451093,-500.0,0.00038356,4]
[311138930,1704929451105,-500.0,0.00038356,4]
[311138932,1704929451115,-608.29,0.00038356,4]
[311138933,1704929451125,-500.0,0.00038356,4]
[311138936,1704929451135,-500.0,0.00038356,4]
[311138938,1704929451145,-500.0,0.00038356,4]
[311138939,1704929451155,-500.0,0.00038356,4]
[311138940,1704929451165,-500.0,0.00038356,4]
[311138941,1704929451175,-500.0,0.00038356,4]
[311138942,1704929451184,-918.68,0.00038356,4]
[311138943,1704929451193,-500.0,0.00038356,4]
[311138944,1704929451205,-500.0,0.00038356,4]
[311138945,1704929451216,-734.84,0.00038356,4]
[311138946,1704929451226,-500.0,0.00038356,4]
[311138947,1704929451235,-500.0,0.00038356,4]
[311138949,1704929451245,-500.0,0.00038356,4]
[311138951,1704929451255,-500.0,0.00038356,4]
[311138953,1704929451265,-500.0,0.00038356,14]
[311138955,1704929451275,-500.0,0.00038356,4]
[311138956,1704929451285,-500.0,0.00038356,4]
[311138958,1704929451299,-500.0,0.00038356,4]
[311138960,1704929451310,-500.0,0.00038356,4]
[311138961,1704929451321,-1045.89,0.00038356,4]
[311138963,1704929451331,-500.0,0.00038356,4]
[311138966,1704929451341,-303.96745509,0.00038356,4]
[311138967,1704929451351,-732.31,0.00038356,4]
[311138970,1704929451361,-500.0,0.00038356,4]
[311138971,1704929451371,-500.0,0.00038356,4]
[311138973,1704929451381,-500.0,0.00038356,4]
[311138975,1704929451390,-500.0,0.00038356,4]
[311138978,1704929451400,-1070.3,0.00038356,4]
[311138980,1704929451410,-500.0,0.00038356,4]
[311138982,1704929451420,-500.0,0.00038356,4]
[311138984,1704929451430,-500.0,0.00038356,4]
[311138986,1704929451440,-500.0,0.00038356,4]
[311138988,1704929451450,-500.0,0.00038356,4]
[311138989,1704929451460,-500.0,0.00038356,4]
[311138992,1704929451470,-500.0,0.00038356,4]
[311138993,1704929451480,-760.88,0.00038356,4]
[311138996,1704929451491,-500.0,0.00038356,4]
[311138997,1704929451501,-500.0,0.00038356,4]
[311138999,1704929451512,-167.99,0.00038356,4]
[311139001,1704929451522,-1000.0,0.00038356,2]
[311139004,1704929451533,-500.0,0.00038356,4]
[311139006,1704929451543,-500.0,0.00038356,4]
[311139008,1704929451558,-500.0,0.00038356,4]
[311139022,1704929451695,-500.0,0.00038356,4]
[311139024,1704929451705,-494.48467583,0.00038356,4]
[311139026,1704929451715,-779.41,0.00038356,4]
[311139028,1704929451725,-1339.65,0.00038356,4]
[311139030,1704929451736,-500.0,0.00038356,4]
[311139032,1704929451746,-500.0,0.00038356,4]
[311139034,1704929451756,-500.0,0.00038356,4]
[311139036,1704929451766,-2385.17,0.00038356,4]
[311139038,1704929451776,-500.0,0.00038356,4]
[311139040,1704929451787,-500.0,0.00038356,4]
[311139042,1704929451799,-500.0,0.00038356,4]
[311139044,1704929451809,-500.0,0.00038356,4]
[311139046,1704929451821,-500.0,0.00038356,4]
[311139048,1704929451831,-500.0,0.00038356,4]
[311139050,1704929451841,-500.0,0.00038356,4]
[311139052,1704929451851,-500.0,0.00038356,4]
[311139054,1704929451860,-500.0,0.00038356,4]
[311139056,1704929451870,-153.84,0.00038356,2]
[311139058,1704929451879,-1000.0,0.000384,15]
[311139060,1704929451888,-8000.0,0.000384,2]
[311139062,1704929451898,-150.0,0.00038428,2]
[311139064,1704929451908,-449.0432663,0.00038451,2]
[311139066,1704929451918,-153.72803979,0.00038475,7]
[311139068,1704929451928,-1114.35054271,0.00038489,2]
[311139070,1704929451937,-152.82594176,0.00038499,7]
[311139072,1704929451947,-938.63168267,0.000385,2]
[311139074,1704929451958,-20399.04,0.000385,7]
[311139076,1704929451968,-960.56379614,0.00038536,2]
[311139077,1704929451978,-1896.27,0.00038565,2]
[311139080,1704929451987,-1104.539281,0.000386,2]
[311139081,1704929451997,-500.0,0.00038629,2]
[311139084,1704929452009,-196.22,0.0003863,4]
[311139085,1704929452020,-335.36,0.0003863,4]
[311139087,1704929452030,-229.81,0.0003863,4]
[311139089,1704929452039,-313.18,0.0003863,4]
[311139092,1704929452054,-635.8,0.0003863,4]
[311139094,1704929452064,-500.0,0.0003863,4]
[311139096,1704929452074,-500.0,0.0003863,4]
[311139098,1704929452083,-500.0,0.0003863,4]
[311139099,1704929452093,-500.0,0.0003863,4]
[311139101,1704929452102,-394.93,0.0003863,4]
[311139103,1704929452112,-500.0,0.0003863,2]
[311139105,1704929452121,-500.0,0.0003863,4]
[311139108,1704929452131,-500.0,0.0003863,4]
[311139109,1704929452141,-500.0,0.0003863,4]
[311139111,1704929452151,-383.98,0.0003863,4]
[311139114,1704929452161,-415.67,0.0003863,4]
[311139116,1704929452170,-500.0,0.0003863,4]
[311139118,1704929452180,-500.0,0.0003863,4]
[311139120,1704929452189,-500.0,0.0003863,4]
[311139122,1704929452201,-323.4,0.0003863,4]
[311139123,1704929452210,-500.0,0.0003863,4]
[311139125,1704929452221,-422.0,0.0003863,4]
[311139127,1704929452230,-500.0,0.0003863,4]
[311139130,1704929452240,-500.0,0.0003863,4]
[311139131,1704929452249,-500.0,0.0003863,4]
[311139134,1704929452258,-500.0,0.0003863,4]
[311139136,1704929452267,-230.31665233,0.0003863,4]
[311139138,1704929452277,-500.0,0.0003863,4]
[311139140,1704929452286,-500.0,0.0003863,4]
[311139142,1704929452299,-643.95,0.0003863,4]
[311139143,1704929452309,-500.0,0.0003863,4]
[311139146,1704929452319,-500.0,0.0003863,4]
[311139148,1704929452329,-500.0,0.0003863,4]
[311139149,1704929452339,-500.0,0.0003863,4]
[311139152,1704929452348,-500.0,0.0003863,4]
[311139154,1704929452358,-500.0,0.0003863,4]
[311139156,1704929452368,-500.0,0.0003863,4]
[311139157,1704929452377,-500.0,0.0003863,4]
[311139159,1704929452387,-500.0,0.0003863,4]
[311139162,1704929452396,-500.0,0.0003863,4]
[311139164,1704929452407,-500.0,0.0003863,4]
[311139165,1704929452419,-500.0,0.0003863,4]
[311139167,1704929452429,-500.0,0.0003863,4]
[311139169,1704929452438,-500.0,0.0003863,4]
[311139171,1704929452447,-500.0,0.0003863,4]
[311139173,1704929452456,-500.0,0.0003863,4]
[311139175,1704929452465,-500.0,0.0003863,4]
[311139177,1704929452475,-182.44,0.0003863,4]
[311139179,1704929452485,-292.64,0.0003863,4]
[311139182,1704929452498,-500.0,0.0003863,4]
[311139184,1704929452508,-217.02,0.0003863,4]
[311139186,1704929452517,-606.45,0.0003863,4]
[311139188,1704929452527,-432.57,0.0003863,4]
[311139190,1704929452540,-969.81,0.0003863,4]
[311139192,1704929452554,-500.0,0.0003863,4]
[311139194,1704929452563,-500.0,0.0003863,4]
[311139196,1704929452573,-500.0,0.0003863,4]
[311139198,1704929452584,-500.0,0.0003863,4]
[311139201,1704929452595,-422.84850208,0.0003863,4]
[311139203,1704929452605,-593.38,0.0003863,4]
[311139205,1704929452616,-500.0,0.0003863,4]
[311139206,1704929452626,-500.0,0.0003863,4]
[311139208,1704929452636,-500.0,0.0003863,4]
[311139210,1704929452646,-500.0,0.0003863,4]
[311139212,1704929452656,-395.04,0.0003863,4]
[311139215,1704929452667,-500.0,0.0003863,4]
[311139217,1704929452677,-627.09,0.0003863,4]
[311139219,1704929452687,-500.0,0.0003863,4]
[311139220,1704929452698,-500.0,0.0003863,4]
[311139222,1704929452709,-500.0,0.0003863,4]
[311139225,1704929452720,-500.0,0.0003863,4]
[311139226,1704929452731,-500.0,0.0003863,4]
[311139229,1704929452742,-500.0,0.0003863,4]
[311139231,1704929452753,-500.0,0.0003863,4]
[311139233,1704929452763,-500.0,0.0003863,4]
[311139235,1704929452774,-500.0,0.0003863,4]
[311139237,1704929452784,-500.0,0.0003863,4]
[311139239,1704929452795,-500.0,0.0003863,4]
[311139241,1704929452812,-169.06,0.0003863,4]
[311139243,1704929452828,-500.0,0.0003863,4]
[311139245,1704929452840,-500.0,0.0003863,4]
[311139247,1704929452850,-500.0,0.0003863,4]
[311139249,1704929452859,-500.0,0.0003863,4]
[311139251,1704929452869,-265.77984845,0.0003863,4]
[311139253,1704929452879,-500.0,0.0003863,4]
[311139255,1704929452888,-500.0,0.0003863,4]
[311139257,1704929452900,-500.0,0.0003863,4]
[311139259,1704929452910,-1000.0,0.0003863,7]
[311139261,1704929452919,-500.0,0.0003863,4]
[311139263,1704929452929,-500.0,0.0003863,4]
[311139265,1704929452939,-500.0,0.0003863,4]
[311139267,1704929452948,-500.0,0.0003863,4]
[311139269,1704929452958,-500.0,0.0003863,4]
[311139271,1704929452967,-500.0,0.0003863,4]
[311139273,1704929452976,-500.0,0.0003863,4]
[311139275,1704929452987,-500.0,0.0003863,4]
[311139277,1704929452996,-500.0,0.0003863,4]
[311139279,1704929453005,-168.81784611,0.0003863,4]
[311139280,1704929453014,-500.0,0.0003863,4]
[311139281,1704929453024,-500.0,0.0003863,4]
[311139282,1704929453033,-547.3,0.0003863,4]
[311139283,1704929453043,-388.26,0.0003863,4]
[311139284,1704929453057,-500.0,0.0003863,4]
[311139285,1704929453067,-585.66,0.0003863,4]
[311139286,1704929453076,-500.0,0.0003863,4]
[311139287,1704929453086,-500.0,0.0003863,4]
[311139289,1704929453096,-500.0,0.0003863,4]
[311139291,1704929453105,-500.0,0.0003863,4]
[311139293,1704929453114,-500.0,0.0003863,2]
[311139295,1704929453124,-500.0,0.0003863,4]
[311139297,1704929453133,-500.0,0.0003863,4]
[311139299,1704929453143,-500.0,0.0003863,4]
[311139301,1704929453152,-500.0,0.0003863,4]
[311139303,1704929453162,-165.47,0.0003863,4]
[311139305,1704929453171,-500.0,0.0003863,4]
[311139308,1704929453181,-368.55,0.0003863,4]
[311139310,1704929453195,-500.0,0.0003863,4]
[311139312,1704929453205,-500.0,0.0003863,4]
[311139314,1704929453215,-500.0,0.0003863,4]
[311139316,1704929453224,-500.0,0.0003863,4]
[311139318,1704929453234,-500.0,0.0003863,4]
[311139320,1704929453244,-500.0,0.0003863,4]
[311139322,1704929453254,-500.0,0.0003863,4]
[311139324,1704929453263,-208.78505816,0.0003863,4]
[311139326,1704929453272,-500.0,0.0003863,4]
[311139328,1704929453282,-2076.04,0.0003863,4]
[311139330,1704929453290,-500.0,0.0003863,4]
[311139332,1704929453303,-500.0,0.0003863,4]
[311139334,1704929453312,-500.0,0.0003863,4]
[311139336,1704929453321,-500.0,0.0003863,4]
[311139338,1704929453331,-513.08926806,0.0003863,4]
[311139340,1704929453341,-500.0,0.0003863,4]
[311139342,1704929453351,-500.0,0.0003863,4]
[311139344,1704929453362,-1000.0,0.0003863,2]
[311139346,1704929453371,-500.0,0.0003863,4]
[311139348,1704929453381,-500.0,0.0003863,4]
[311139350,1704929453390,-500.0,0.0003863,4]
[311139352,1704929453400,-500.0,0.0003863,4]
[311139354,1704929453409,-500.0,0.0003863,4]
[311139356,1704929453418,-500.0,0.0003863,4]
[311139358,1704929453427,-500.0,0.0003863,4]
[311139360,1704929453436,-500.0,0.0003863,4]
[311139362,1704929453446,-500.0,0.0003863,4]
[311139364,1704929453455,-561.77,0.0003863,4]
[311139366,1704929453464,-458.02,0.0003863,4]
[311139368,1704929453473,-500.0,0.0003863,4]
[311139370,1704929453482,-500.0,0.0003863,7]
[311139372,1704929453491,-500.0,0.0003863,4]
[311139374,1704929453500,-500.0,0.0003863,4]
[311139376,1704929453509,-500.0,0.0003863,4]
[311139378,1704929453520,-500.0,0.0003863,4]
[311139380,1704929453529,-500.0,0.0003863,4]
[311139382,1704929453539,-500.0,0.0003863,4]
[311139384,1704929453552,-500.0,0.0003863,4]
[311139386,1704929453561,-500.0,0.0003863,4]
[311139388,1704929453570,-500.0,0.0003863,4]
[311139390,1704929453579,-500.0,0.0003863,4]
[311139392,1704929453588,-500.0,0.0003863,4]
[311139394,1704929453597,-500.0,0.0003863,4]
[311139396,1704929453607,-500.0,0.0003863,4]
[311139398,1704929453617,-500.0,0.0003863,4]
[311139400,1704929453627,-500.0,0.0003863,4]
[311139402,1704929453637,-500.0,0.0003863,4]
[311139404,1704929453646,-500.0,0.0003863,4]
[311139406,1704929453656,-500.0,0.0003863,4]
[311139408,1704929453665,-500.0,0.0003863,4]
[311139410,1704929453675,-500.0,0.0003863,4]
[311139412,1704929453684,-500.0,0.0003863,4]
[311139414,1704929453694,-500.0,0.0003863,4]
[311139416,1704929453704,-500.0,0.0003863,4]
[311139418,1704929453714,-500.0,0.0003863,4]
[311139420,1704929453723,-500.0,0.0003863,4]
[311139422,1704929453733,-500.0,0.0003863,4]
[311139425,1704929453742,-500.0,0.0003863,4]
[311139427,1704929453751,-500.0,0.0003863,4]
[311139429,1704929453761,-500.0,0.0003863,4]
[311139431,1704929453770,-500.0,0.0003863,4]
[311139433,1704929453779,-500.0,0.0003863,4]
[311139435,1704929453788,-500.0,0.0003863,4]
[311139437,1704929453802,-500.0,0.0003863,4]
[311139439,1704929453811,-150.0,0.0003863,4]
[311139441,1704929453821,-333.27,0.0003863,4]
[311139442,1704929453833,-500.0,0.0003863,4]
[311139445,1704929453843,-500.0,0.0003863,4]
[311139446,1704929453852,-500.0,0.0003863,4]
[311139449,1704929453862,-500.0,0.0003863,4]
[311139450,1704929453873,-500.0,0.0003863,4]
[311139452,1704929453882,-500.0,0.0003863,4]
[311139454,1704929453892,-500.0,0.0003863,4]
[311139456,1704929453902,-214.75,0.0003863,4]
[311139458,1704929453912,-508.12,0.0003863,4]
[311139460,1704929453921,-500.0,0.0003863,4]
[311139462,1704929453930,-500.0,0.0003863,4]
[311139465,1704929453940,-348.07,0.0003863,4]
[311139466,1704929453951,-500.0,0.0003863,4]
[311139469,1704929453960,-500.0,0.0003863,4]
[311139470,1704929453969,-500.0,0.0003863,4]
[311139472,1704929453979,-500.0,0.0003863,4]
[311139475,1704929453988,-276.38,0.0003863,4]
[311139477,1704929453997,-382.04,0.0003863,4]
[311139479,1704929454006,-500.0,0.0003863,4]
[311139481,1704929454015,-649.6,0.0003863,4]
[311139483,1704929454029,-500.0,0.0003863,4]
[311139485,1704929454042,-560.24419816,0.0003863,4]
[311139502,1704929454194,-500.0,0.0003863,4]
[311139504,1704929454205,-500.0,0.0003863,4]
[311139506,1704929454215,-503.67,0.0003863,4]
[311139508,1704929454224,-500.0,0.0003863,4]
[311139510,1704929454233,-500.0,0.0003863,4]
[311139512,1704929454243,-500.0,0.0003863,4]
[311139514,1704929454253,-546.87,0.0003863,4]
[311139516,1704929454263,-500.0,0.0003863,4]
[311139518,1704929454273,-500.0,0.0003863,4]
[311139520,1704929454282,-500.0,0.0003863,4]
[311139522,1704929454291,-500.0,0.0003863,4]
[311139524,1704929454303,-315.88,0.0003863,4]
[311139526,1704929454313,-627.53,0.0003863,4]
[311139529,1704929454323,-304.09,0.0003863,4]
[311139531,1704929454333,-500.0,0.0003863,4]
[311139533,1704929454343,-500.0,0.0003863,4]
[311139534,1704929454352,-238.84,0.0003863,4]
[311139537,1704929454362,-500.0,0.0003863,4]
[311139538,1704929454372,-453.47,0.0003863,4]
[311139540,1704929454381,-510.96,0.0003863,4]
[311139541,1704929454391,-223.37,0.0003863,4]
[311139542,1704929454400,-381.91401413,0.0003863,4]
[311139543,1704929454410,-449.4614825,0.0003863,30]
[311139544,1704929454420,-500.0,0.0003863,4]
[311139545,1704929454431,-156.22,0.0003863,4]
[311139546,1704929454440,-500.0,0.0003863,2]
[311139547,1704929454450,-500.0,0.0003863,4]
[311139548,1704929454460,-500.0,0.0003863,4]
[311139549,1704929454470,-500.0,0.0003863,4]
[311139550,1704929454481,-207.10347425,0.0003863,4]
[311139551,1704929454491,-500.0,0.0003863,4]
[311139552,1704929454500,-500.0,0.0003863,4]
[311139553,1704929454509,-500.0,0.0003863,4]
[311139554,1704929454519,-500.0,0.0003863,4]
[311139555,1704929454528,-500.0,0.0003863,4]
[311139556,1704929454538,-500.0,0.0003863,4]
[311139557,1704929454550,-500.0,0.0003863,4]
[311139558,1704929454559,-500.0,0.0003863,4]
[311139559,1704929454568,-500.0,0.0003863,4]
[311139560,1704929454578,-500.0,0.0003863,4]
[311139561,1704929454587,-500.0,0.0003863,4]
[311139562,1704929454596,-500.0,0.0003863,4]
[311139563,1704929454605,-500.0,0.0003863,4]
[311139564,1704929454615,-500.0,0.0003863,4]
[311139565,1704929454625,-500.0,0.0003863,4]
[311139566,1704929454635,-500.0,0.0003863,4]
[311139567,1704929454645,-500.0,0.0003863,4]
[311139568,1704929454654,-500.0,0.0003863,4]
[311139569,1704929454664,-500.0,0.0003863,4]
[311139570,1704929454673,-1391.02,0.0003863,4]
[311139572,1704929454683,-500.0,0.0003863,4]
[311139574,1704929454693,-500.0,0.0003863,4]
[311139576,1704929454702,-901.49,0.0003863,4]
[311139578,1704929454712,-500.0,0.0003863,4]
[311139580,1704929454721,-500.0,0.0003863,4]
[311139582,1704929454731,-1168.0,0.0003863,4]
[311139584,1704929454740,-500.0,0.0003863,4]
[311139586,1704929454750,-500.0,0.0003863,4]
[311139588,1704929454760,-500.0,0.0003863,4]
[311139590,1704929454769,-172.12,0.0003863,4]
[311139592,1704929454779,-1104.48,0.0003863,4]
[311139594,1704929454788,-500.0,0.0003863,4]
[311139596,1704929454799,-500.0,0.0003863,4]
[311139598,1704929454807,-1336.04,0.0003863,4]
[311139599,1704929454817,-500.0,0.0003863,4]
[311139602,1704929454830,-1403.81,0.0003863,4]
[311139604,1704929454839,-500.0,0.0003863,4]
[311139605,1704929454848,-500.0,0.0003863,4]
[311139608,1704929454858,-500.0,0.0003863,4]
[311139610,1704929454868,-500.0,0.0003863,4]
[311139611,1704929454877,-500.0,0.0003863,4]
[311139613,1704929454887,-500.0,0.0003863,4]
[311139615,1704929454896,-588.64,0.0003863,4]
[311139617,1704929454906,-6847.32,0.0003863,4]
[311139620,1704929454915,-500.0,0.0003863,4]
[311139622,1704929454924,-500.0,0.0003863,4]
[311139624,1704929454933,-500.0,0.0003863,4]
[311139626,1704929454942,-500.0,0.0003863,4]
[311139627,1704929454951,-500.0,0.0003863,4]
[311139629,1704929454960,-500.0,0.0003863,4]
[311139631,1704929454970,-1442.46,0.0003863,4]
[311139633,1704929454980,-500.0,0.0003863,4]
[311139635,1704929454991,-500.0,0.0003863,4]
[311139637,1704929455001,-500.0,0.0003863,4]
[311139639,1704929455010,-791.45,0.0003863,4]
[311139641,1704929455020,-500.0,0.0003863,4]
[311139643,1704929455031,-500.0,0.0003863,4]
[311139645,1704929455041,-500.0,0.0003863,4]
[311139648,1704929455055,-1371.84,0.0003863,4]
[311139650,1704929455067,-500.0,0.0003863,4]
[311139652,1704929455078,-500.0,0.0003863,4]
[311139654,1704929455088,-674.38,0.0003863,4]
[311139656,1704929455098,-260.22,0.0003863,4]
[311139658,1704929455107,-500.0,0.0003863,4]
[311139660,1704929455117,-1399.35,0.0003863,4]
[311139661,1704929455127,-500.0,0.0003863,4]
[311139662,1704929455137,-500.0,0.0003863,4]
[311139663,1704929455147,-500.0,0.0003863,4]
[311139665,1704929455156,-500.0,0.0003863,4]
[311139666,1704929455165,-500.0,0.0003863,4]
[311139667,1704929455174,-500.0,0.0003863,4]
[311139668,1704929455184,-500.0,0.0003863,4]
[311139669,1704929455193,-500.0,0.0003863,4]
[311139670,1704929455202,-500.0,0.0003863,4]
[311139671,1704929455212,-653.23,0.0003863,4]
[311139672,1704929455221,-500.0,0.0003863,4]
[311139673,1704929455231,-500.0,0.0003863,4]
[311139674,1704929455241,-500.0,0.0003863,4]
[311139675,1704929455250,-500.0,0.0003863,4]
[311139676,1704929455260,-500.0,0.0003863,4]
[311139677,1704929455270,-500.0,0.0003863,4]
[311139678,1704929455280,-500.0,0.0003863,4]
[311139679,1704929455290,-500.0,0.0003863,4]
[311139680,1704929455302,-500.0,0.0003863,4]
[311139681,1704929455312,-500.0,0.0003863,4]
[311139682,1704929455321,-500.0,0.0003863,4]
[311139683,1704929455330,-578.7,0.0003863,4]
[311139684,1704929455349,-500.0,0.0003863,4]
[311139685,1704929455361,-694.35,0.0003863,4]
[311139686,1704929455370,-500.0,0.0003863,4]
[311139687,1704929455380,-500.0,0.0003863,4]
[311139688,1704929455389,-500.0,0.0003863,4]
[311139689,1704929455399,-500.0,0.0003863,4]
[311139690,1704929455408,-249.11,0.0003863,4]
[311139691,1704929455418,-500.0,0.0003863,4]
[311139692,1704929455427,-500.0,0.0003863,4]
[311139693,1704929455437,-500.0,0.0003863,4]
[311139694,1704929455446,-500.0,0.0003863,4]
[311139695,1704929455455,-500.0,0.0003863,4]
[311139697,1704929455465,-446.28704011,0.0003863,4]
[311139698,1704929455475,-800.64,0.0003863,4]
[311139699,1704929455484,-500.0,0.0003863,4]
[311139700,1704929455493,-545.35,0.0003863,4]
[311139701,1704929455503,-1377.63,0.0003863,4]
[311139702,1704929455512,-986.83,0.0003863,4]
[311139703,1704929455522,-293.45,0.0003863,4]
[311139704,1704929455531,-1114.48,0.0003863,4]
[311139705,1704929455541,-500.0,0.0003863,4]
[311139706,1704929455553,-2234.62,0.0003863,4]
[311139707,1704929455563,-887.56,0.0003863,4]
[311139708,1704929455572,-500.0,0.0003863,4]
[311139709,1704929455581,-500.0,0.0003863,4]
[311139710,1704929455590,-2704.03,0.0003863,4]
[311139711,1704929455599,-500.0,0.0003863,4]
[311139712,1704929455609,-500.0,0.0003863,4]
[311139713,1704929455619,-662.58,0.0003863,4]
[311139714,1704929455629,-562.06,0.0003863,4]
[311139715,1704929455638,-500.0,0.0003863,4]
[311139716,1704929455647,-500.0,0.0003863,4]
[311139717,1704929455656,-500.0,0.0003863,4]
[311139718,1704929455666,-500.0,0.0003863,4]
[311139719,1704929455676,-500.0,0.0003863,4]
[311139720,1704929455685,-669.07,0.0003863,4]
[311139721,1704929455694,-1476.13,0.0003863,4]
[311139722,1704929455703,-1960.32,0.0003863,4]
[311139723,1704929455713,-500.0,0.0003863,4]
[311139724,1704929455722,-967.46,0.0003863,4]
[311139725,1704929455732,-187.52,0.0003863,4]
[311139726,1704929455742,-500.0,0.0003863,4]
[311139727,1704929455751,-508.27,0.0003863,4]
[311139728,1704929455760,-396.17,0.0003863,4]
[311139729,1704929455771,-500.0,0.0003863,4]
[311139730,1704929455780,-190.72,0.0003863,4]
[311139731,1704929455790,-482.47,0.0003863,4]
[311139732,1704929455801,-500.0,0.0003863,4]
[311139733,1704929455811,-670.39,0.0003863,4]
[311139734,1704929455821,-500.0,0.0003863,4]
[311139735,1704929455833,-500.0,0.0003863,4]